fUSD/lending_fUSD_20240720
["ID","MTS","AMOUNT","RATE_DAILY","PERIOD"]
[332690078,1721452263685,-2447.5,0.00032876,14]
[332690079,1721452263694,-2718.0,0.00032876,14]
[332690080,1721452263703,-6951.69,0.00032876,14]
[332690081,1721452263712,-500.0,0.00032876,14]
[332690082,1721452263721,-500.0,0.00032876,14]
[332690083,1721452263731,-500.0,0.00032876,14]
[332690084,1721452263740,-500.0,0.00032876,14]
[332690085,1721452263750,-500.0,0.00032876,14]
[332690086,1721452263759,-500.0,0.00032876,14]
[332690087,1721452263769,-908.8,0.00032876,14]
[332690088,1721452263779,-500.0,0.00032876,14]
[332690089,1721452263788,-1800.06,0.00032876,14]
[332690090,1721452263797,-975.93,0.00032876,14]
[332690091,1721452263806,-500.0,0.00032876,14]
[332690092,1721452263816,-1738.49,0.00032876,14]
[332690093,1721452263826,-5201.38,0.00032876,14]
[332690094,1721452263836,-500.0,0.00032876,14]
[332690095,1721452263846,-500.0,0.00032876,14]
[332690096,1721452263855,-714.27,0.00032876,14]
[332690097,1721452263865,-500.0,0.00032876,14]
[332690098,1721452263875,-500.0,0.00032876,14]
[332690099,1721452263884,-507.98488534,0.00032876,14]
[332690100,1721452263894,-9104.64,0.00032876,14]
[332690101,1721452263903,-500.0,0.00032876,14]
[332690102,1721452263913,-500.0,0.00032876,14]
[332690103,1721452263923,-500.0,0.00032876,14]
[332690104,1721452263932,-504.41,0.00032876,14]
[332690105,1721452263942,-500.0,0.00032876,2]
[332690106,1721452263951,-500.0,0.00032876,14]
[332690107,1721452263961,-500.0,0.00032876,14]
[332690108,1721452263970,-500.0,0.00032876,14]
[332690109,1721452263980,-500.0,0.00032876,14]
[332690110,1721452263989,-500.0,0.00032876,14]
[332690111,1721452263999,-500.0,0.00032876,14]
[332690112,1721452264008,-500.0,0.00032876,14]
[332690113,1721452264018,-500.0,0.00032876,14]
[332690114,1721452264027,-500.0,0.00032876,14]
[332690115,1721452264036,-500.0,0.00032876,14]
[332690116,1721452264045,-1466.62,0.00032876,14]
[332690117,1721452264055,-5642.97,0.00032876,14]
[332690118,1721452264064,-1754.34,0.00032876,14]
[332690119,1721452264073,-1092.71,0.00032876,14]
[332690120,1721452264082,-500.0,0.00032876,14]
[332690121,1721452264091,-500.0,0.00032876,14]
[332690122,1721452264101,-1704.32,0.00032876,14]
[332690123,1721452264110,-500.0,0.00032876,14]
[332690124,1721452264119,-500.0,0.00032876,14]
[332690125,1721452264128,-500.0,0.00032876,14]
[332690126,1721452264138,-500.0,0.00032876,7]
[332690127,1721452264147,-500.0,0.00032876,14]
[332690128,1721452264156,-500.0,0.00032876,14]
[332690129,1721452264165,-500.0,0.00032876,14]
[332690130,1721452264175,-500.0,0.00032876,14]
[332690131,1721452264184,-4325.23,0.00032876,14]
[332690132,1721452264193,-500.0,0.00032876,14]
[332690133,1721452264202,-500.0,0.00032876,14]
[332690134,1721452264211,-738.58,0.00032876,14]
[332690135,1721452264221,-500.0,0.00032876,14]
[332690136,1721452264230,-814.05,0.00032876,14]
[332690137,1721452264239,-731.2,0.00032876,14]
[332690138,1721452264248,-1471.14,0.00032876,14]
[332690139,1721452264258,-4935.97,0.00032876,14]
[332690140,1721452264268,-3510.37,0.00032876,14]
[332690141,1721452264277,-1229.29,0.00032876,14]
[332690142,1721452264287,-500.0,0.00032876,14]
[332690143,1721452264296,-1164.69,0.00032876,14]
[332690144,1721452264306,-500.0,0.00032876,14]
[332690145,1721452264315,-500.0,0.00032876,14]
[332690146,1721452264326,-3419.7,0.00032876,14]
[332690147,1721452264335,-795.79,0.00032876,14]
[332690148,1721452264345,-500.0,0.00032876,14]
[332690149,1721452264354,-509.16910075,0.00032876,14]
[332690150,1721452264364,-1370.44,0.00032876,14]
[332690151,1721452264374,-500.0,0.00032876,14]
[332690152,1721452264384,-500.0,0.00032876,14]
[332690153,1721452264394,-500.0,0.00032876,14]
[332690154,1721452264404,-5518.78,0.00032876,14]
[332690155,1721452264414,-500.0,0.00032876,14]
[332690156,1721452264424,-500.0,0.00032876,14]
[332690157,1721452264434,-855.69,0.00032876,14]
[332690158,1721452264443,-500.0,0.00032876,14]
[332690159,1721452264453,-500.0,0.00032876,14]
[332690160,1721452264463,-1428.43,0.00032876,14]
[332690161,1721452264473,-1414.58,0.00032876,14]
[332690162,1721452264483,-500.0,0.00032876,14]
[332690163,1721452264493,-1661.1,0.00032876,14]
[332690164,1721452264503,-1024.94,0.00032876,14]
[332690165,1721452264512,-1024.94,0.00032876,14]
[332690166,1721452264522,-500.0,0.00032876,14]
[332690167,1721452264532,-500.0,0.00032876,14]
[332690168,1721452264541,-500.0,0.00032876,14]
[332690169,1721452264551,-500.0,0.00032876,14]
[332690170,1721452264561,-504.66876613,0.00032876,14]
[332690171,1721452264571,-867.72,0.00032876,14]
[332690172,1721452264582,-500.0,0.00032876,14]
[332690173,1721452264593,-5718.78,0.00032876,14]
[332690174,1721452264609,-500.0,0.00032876,14]
[332690175,1721452264620,-601.33,0.00032876,14]
[332690176,1721452264630,-417.674845,0.00032876,7]
[332690177,1721452264640,-1256.52,0.00032876,14]
[332690178,1721452264650,-417.674845,0.00032876,7]
[332690179,1721452264659,-2364.4,0.00032876,14]
[332690180,1721452264668,-500.0,0.00032876,14]
[332690181,1721452264678,-1122.57,0.00032876,14]
[332690182,1721452264688,-500.0,0.00032876,14]
[332690183,1721452264698,-500.0,0.00032876,14]
[332690184,1721452264707,-500.0,0.00032876,14]
[332690185,1721452264716,-500.0,0.00032876,14]
[332690186,1721452264726,-3777.43,0.00032876,14]
[332690187,1721452264736,-1287.89,0.00032876,14]
[332690188,1721452264745,-500.0,0.00032876,14]
[332690189,1721452264755,-2909.95,0.00032876,14]
[332690190,1721452264765,-1155.76,0.00032876,14]
[332690191,1721452264775,-500.0,0.00032876,14]
[332690192,1721452264785,-500.0,0.00032876,14]
[332690193,1721452264795,-1155.76,0.00032876,14]
[332690194,1721452264804,-1155.76,0.00032876,14]
[332690195,1721452264815,-1155.76,0.00032876,14]
[332690196,1721452264825,-1155.76,0.00032876,14]
[332690197,1721452264836,-1155.76,0.00032876,14]
[332690198,1721452264845,-500.0,0.00032876,14]
[332690199,1721452264855,-1155.76,0.00032876,14]
[332690200,1721452264865,-1155.76,0.00032876,14]
[332690201,1721452264875,-1155.76,0.00032876,14]
[332690202,1721452264885,-1155.76,0.00032876,14]
[332690203,1721452264895,-1155.76,0.00032876,14]
[332690204,1721452264905,-1155.76,0.00032876,14]
[332690205,1721452264915,-500.0,0.00032876,14]
[332690206,1721452264925,-1155.76,0.00032876,14]
[332690207,1721452264934,-500.0,0.00032876,14]
[332690208,1721452264944,-519.36,0.00032876,14]
[332690209,1721452264957,-1155.76,0.00032876,14]
[332690210,1721452264967,-1155.76,0.00032876,14]
[332690211,1721452264976,-1155.76,0.00032876,14]
[332690212,1721452264986,-500.0,0.00032876,14]
[332690213,1721452264996,-1155.76,0.00032876,14]
[332690214,1721452265006,-7748.76,0.00032876,14]
[332690215,1721452265016,-1155.76,0.00032876,14]
[332690216,1721452265026,-1155.76,0.00032876,14]
[332690217,1721452265036,-500.0,0.00032876,14]
[332690218,1721452265046,-1155.76,0.00032876,14]
[332690219,1721452265056,-317.75774671,0.00032876,14]
[332690220,1721452265066,-2623.21,0.00032876,14]
[332690221,1721452265076,-1155.76,0.00032876,14]
[332690222,1721452265087,-3248.84,0.00032876,14]
[332690223,1721452265097,-3223.85,0.00032876,14]
[332690224,1721452265108,-1155.76,0.00032876,14]
[332690225,1721452265117,-1155.76,0.00032876,14]
[332690226,1721452265127,-1155.7930788,0.00032876,14]
[332690227,1721452265137,-753.17,0.00032876,14]
[332690228,1721452265147,-500.0,0.00032876,14]
[332690229,1721452265157,-500.0,0.00032876,14]
[332690230,1721452265167,-1040.19,0.00032876,14]
[332690231,1721452265177,-500.0,0.00032876,14]
[332690232,1721452265187,-500.0,0.00032876,14]
[332690233,1721452265198,-500.0,0.00032876,14]
[332690234,1721452265207,-1843.55,0.00032876,14]
[332690235,1721452265217,-500.0,0.00032876,14]
[332690236,1721452265227,-500.0,0.00032876,14]
[332690237,1721452265237,-5092.61,0.00032876,14]
[332690238,1721452265247,-500.0,0.00032876,14]
[332690239,1721452265256,-500.0,0.00032876,14]
[332690240,1721452265266,-985.71,0.00032876,14]
[332690241,1721452265276,-2260.04,0.00032876,14]
[332690242,1721452265285,-500.0,0.00032876,14]
[332690243,1721452265295,-500.0,0.00032876,14]
[332690244,1721452265305,-690.64,0.00032876,14]
[332690245,1721452265314,-500.0,0.00032876,14]
[332690246,1721452265324,-500.0,0.00032876,14]
[332690247,1721452265335,-1524.14,0.00032876,14]
[332690248,1721452265345,-1121.01,0.00032876,14]
[332690249,1721452265355,-1503.86,0.00032876,14]
[332690250,1721452265364,-500.0,0.00032876,14]
[332690251,1721452265374,-500.0,0.00032876,14]
[332690252,1721452265384,-3751.65,0.00032876,14]
[332690253,1721452265394,-500.0,0.00032876,14]
[332690254,1721452265404,-500.0,0.00032876,14]
[332690255,1721452265415,-505.17321264,0.00032876,14]
[332690256,1721452265424,-500.0,0.00032876,14]
[332690257,1721452265434,-1947.42,0.00032876,14]
[332690258,1721452265444,-500.0,0.00032876,14]
[332690259,1721452265454,-151.0,0.00032876,7]
[332690260,1721452265463,-500.0,0.00032876,14]
[332690261,1721452265473,-151.0,0.00032876,7]
[332690262,1721452265483,-500.0,0.00032876,14]
[332690263,1721452265493,-500.0,0.00032876,14]
[332690264,1721452265503,-950.08,0.00032876,14]
[332690265,1721452265513,-501.61592942,0.00032876,2]
[332690266,1721452265524,-1504.54,0.00032876,14]
[332690267,1721452265534,-500.0,0.00032876,14]
[332690268,1721452265544,-500.0,0.00032876,14]
[332690269,1721452265555,-2533.37,0.00032876,14]
[332690270,1721452265565,-500.0,0.00032876,14]
[332690271,1721452265575,-896.76,0.00032876,14]
[332690272,1721452265585,-500.0,0.00032876,14]
[332690273,1721452265597,-500.0,0.00032876,14]
[332690274,1721452265607,-552.56,0.00032876,14]
[332690275,1721452265616,-14489.0,0.00032876,14]
[332690276,1721452265626,-500.0,0.00032876,14]
[332690277,1721452265637,-514.52145117,0.00032876,14]
[332690278,1721452265647,-1465.63,0.00032876,14]
[332690279,1721452265658,-500.0,0.00032876,14]
[332690280,1721452265669,-698.57,0.00032876,14]
[332690281,1721452265679,-2480.15,0.00032876,14]
[332690282,1721452265688,-500.0,0.00032876,14]
[332690283,1721452265698,-500.0,0.00032876,14]
[332690284,1721452265707,-696.41,0.00032876,14]
[332690285,1721452265717,-500.0,0.00032876,14]
[332690286,1721452265727,-500.0,0.00032876,14]
[332690287,1721452265737,-151.0,0.00032876,7]
[332690288,1721452265747,-500.0,0.00032876,14]
[332690289,1721452265756,-151.0,0.00032876,7]
[332690290,1721452265766,-884.369856,0.00032876,7]
[332690291,1721452265776,-500.0,0.00032876,14]
[332690292,1721452265786,-3078.84,0.00032876,14]
[332690293,1721452265796,-884.369856,0.00032876,7]
[332690294,1721452265806,-2104.4,0.00032876,14]
[332690295,1721452265815,-500.0,0.00032876,14]
[332690296,1721452265825,-500.0,0.00032876,14]
[332690297,1721452265834,-703.93,0.00032876,14]
[332690298,1721452265844,-1047.59,0.00032876,14]
[332690299,1721452265854,-500.0,0.00032876,14]
[332690300,1721452265864,-500.0,0.00032876,14]
[332690301,1721452265873,-151.0,0.00032876,7]
[332690302,1721452265883,-500.0,0.00032876,2]
[332690303,1721452265893,-151.0,0.00032876,7]
[332690304,1721452265903,-165.956913,0.00032876,7]
[332690305,1721452265913,-151.0,0.00032876,7]
[332690306,1721452265923,-500.0,0.00032876,14]
[332690307,1721452265932,-884.369856,0.00032876,7]
[332690308,1721452265942,-884.369856,0.00032876,7]
[332690309,1721452265952,-3181.26,0.00032876,14]
[332690310,1721452265962,-500.0,0.00032876,14]
[332690311,1721452265972,-500.0,0.00032876,14]
[332690312,1721452265983,-500.0,0.00032876,14]
[332690313,1721452265993,-500.0,0.00032876,14]
[332690314,1721452266002,-500.0,0.00032876,14]
[332690315,1721452266012,-3280.76,0.00032876,14]
[332690316,1721452266022,-2612.66,0.00032876,14]
[332690317,1721452266032,-500.0,0.00032876,14]
[332690318,1721452266041,-1071.06,0.00032876,14]
[332690319,1721452266051,-233.857149,0.00032876,7]
[332690320,1721452266062,-1049.87,0.00032876,14]
[332690321,1721452266072,-792.59,0.00032876,14]
[332690322,1721452266083,-1022.95,0.00032876,14]
[332690323,1721452266093,-6852.05,0.00032876,14]
[332690324,1721452266103,-500.0,0.00032876,14]
[332690325,1721452266113,-508.63444971,0.00032876,14]
[332690326,1721452266123,-621.06,0.00032876,14]
[332690327,1721452266132,-500.0,0.00032876,14]
[332690328,1721452266143,-500.0,0.00032876,14]
[332690329,1721452266154,-840.65,0.00032876,14]
[332690330,1721452266164,-500.0,0.00032876,14]
[332690331,1721452266174,-500.0,0.00032876,14]
[332690332,1721452266184,-5155.85,0.00032876,14]
[332690333,1721452266195,-977.33,0.00032876,14]
[332690334,1721452266205,-2556.95,0.00032876,14]
[332690335,1721452266215,-500.0,0.00032876,14]
[332690336,1721452266226,-500.0,0.00032876,14]
[332690337,1721452266235,-7638.3,0.00032876,14]
[332690338,1721452266245,-501.71645664,0.00032876,14]
[332690339,1721452266256,-500.0,0.00032876,14]
[332690340,1721452266267,-2668.32,0.00032876,14]
[332690341,1721452266278,-680.34,0.00032876,14]
[332690342,1721452266289,-500.0,0.00032876,14]
[332690343,1721452266299,-505.59051514,0.00032876,14]
[332690344,1721452266309,-747.2,0.00032876,14]
[332690345,1721452266320,-939.37,0.00032876,14]
[332690346,1721452266331,-1116.468242,0.00032876,7]
[332690347,1721452266340,-7834.82,0.00032876,14]
[332690348,1721452266350,-1116.468242,0.00032876,7]
[332690349,1721452266361,-517.29002717,0.00032876,14]
[332690350,1721452266371,-500.0,0.00032876,14]
[332690351,1721452266381,-2497.76,0.00032876,14]
[332690352,1721452266391,-500.0,0.00032876,14]
[332690353,1721452266401,-500.0,0.00032876,14]
[332690354,1721452266411,-200.0,0.00032876,7]
[332690355,1721452266421,-500.0,0.00032876,14]
[332690356,1721452266431,-506.24065513,0.00032876,14]
[332690357,1721452266441,-675.73,0.00032876,14]
[332690358,1721452266451,-500.0,0.00032876,14]
[332690359,1721452266461,-873.37,0.00032876,14]
[332690360,1721452266471,-1766.02,0.00032876,14]
[332690361,1721452266480,-1116.468242,0.00032876,7]
[332690362,1721452266490,-1116.468242,0.00032876,7]
[332690363,1721452266500,-1231.81,0.00032876,14]
[332690364,1721452266509,-2756.06,0.00032876,14]
[332690365,1721452266519,-1298.26,0.00032876,14]
[332690366,1721452266529,-500.0,0.00032876,14]
[332690367,1721452266539,-500.0,0.00032876,14]
[332690368,1721452266771,-500.0,0.00032876,14]
[332690369,1721452266781,-3099.39,0.00032876,14]
[332690370,1721452266790,-500.0,0.00032876,14]
[332690371,1721452266800,-822.69,0.00032876,14]
[332690372,1721452266809,-1482.76,0.00032876,14]
[332690373,1721452266818,-738.39,0.00032876,14]
[332690374,1721452266828,-500.0,0.00032876,14]
[332690375,1721452266837,-500.0,0.00032876,14]
[332690376,1721452266846,-1608.13,0.00032876,14]
[332690377,1721452266856,-6235.61,0.00032876,14]
[332690378,1721452266865,-1663.14,0.00032876,14]
[332690379,1721452266874,-500.0,0.00032876,14]
[332690380,1721452266883,-500.0,0.00032876,14]
[332690381,1721452266893,-3638.21,0.00032876,14]
[332690382,1721452266902,-500.0,0.00032876,14]
[332690383,1721452266911,-1194.14,0.00032876,14]
[332690384,1721452266921,-500.0,0.00032876,14]
[332690385,1721452266930,-500.0,0.00032876,30]
[332690386,1721452266939,-500.0,0.00032876,14]
[332690387,1721452266949,-500.0,0.00032876,14]
[332690388,1721452266958,-500.0,0.00032876,14]
[332690389,1721452266967,-500.0,0.00032876,14]
[332690390,1721452266977,-517.22424615,0.00032876,14]
[332690391,1721452266987,-500.0,0.00032876,14]
[332690392,1721452266996,-6855.68,0.00032876,14]
[332690393,1721452267006,-500.0,0.00032876,14]
[332690394,1721452267016,-500.0,0.00032876,14]
[332690395,1721452267027,-500.0,0.00032876,14]
[332690396,1721452267037,-1491.07,0.00032876,14]
[332690397,1721452267047,-500.0,0.00032876,14]
[332690398,1721452267057,-500.0,0.00032876,14]
[332690399,1721452267067,-500.0,0.00032876,14]
[332690400,1721452267077,-500.0,0.00032876,14]
[332690401,1721452267087,-500.0,0.00032876,14]
[332690402,1721452267097,-500.0,0.00032876,14]
[332690403,1721452267106,-500.0,0.00032876,14]
[332690404,1721452267116,-500.0,0.00032876,14]
[332690405,1721452267127,-500.0,0.00032876,14]
[332690406,1721452267137,-500.0,0.00032876,14]
[332690407,1721452267146,-3305.37,0.00032876,14]
[332690408,1721452267155,-3485.91,0.00032876,14]
[332690409,1721452267165,-500.0,0.00032876,14]
[332690410,1721452267175,-500.0,0.00032876,14]
[332690411,1721452267184,-3149.89,0.00032876,14]
[332690412,1721452267194,-500.0,0.00032876,14]
[332690413,1721452267204,-558.69,0.00032876,14]
[332690414,1721452267214,-953.68,0.00032876,14]
[332690415,1721452267224,-500.0,0.00032876,14]
[332690416,1721452267234,-500.0,0.00032876,14]
[332690417,1721452267244,-151.0,0.00032876,7]
[332690418,1721452267254,-151.0,0.00032876,7]
[332690419,1721452267264,-1857.46,0.00032876,14]
[332690420,1721452267274,-501.37100128,0.00032876,14]
[332690421,1721452267283,-500.0,0.00032876,14]
[332690422,1721452267293,-7942.67,0.00032876,14]
[332690423,1721452267303,-500.0,0.00032876,14]
[332690424,1721452267312,-707.35,0.00032876,14]
[332690425,1721452267322,-500.0,0.00032876,14]
[332690426,1721452267333,-500.0,0.00032876,14]
[332690427,1721452267343,-1474.38,0.00032876,14]
[332690428,1721452267353,-500.0,0.00032876,14]
[332690429,1721452267363,-500.0,0.00032876,14]
[332690430,1721452267372,-1637.6,0.00032876,14]
[332690431,1721452267381,-3070.19,0.00032876,14]
[332690432,1721452267391,-301.412,0.00032876,7]
[332690433,1721452267401,-678.65,0.00032876,14]
[332690434,1721452267410,-500.0,0.00032876,14]
[332690435,1721452267420,-301.412,0.00032876,7]
[332690436,1721452267430,-7567.17,0.00032876,14]
[332690437,1721452267440,-500.0,0.00032876,14]
[332690438,1721452267451,-500.0,0.00032876,14]
[332690439,1721452267461,-500.0,0.00032876,14]
[332690440,1721452267470,-1535.24,0.00032876,14]
[332690441,1721452267479,-500.0,0.00032876,14]
[332690442,1721452267489,-151.0,0.00032876,7]
[332690443,1721452267499,-500.0,0.00032876,14]
[332690444,1721452267508,-151.0,0.00032876,7]
[332690445,1721452267518,-500.0,0.00032876,14]
[332690446,1721452267527,-301.412,0.00032876,7]
[332690447,1721452267537,-301.412,0.00032876,7]
[332690448,1721452267547,-500.0,0.00032876,14]
[332690449,1721452267556,-500.0,0.00032876,14]
[332690450,1721452267566,-500.0,0.00032876,14]
[332690451,1721452267575,-1075.68,0.00032876,14]
[332690452,1721452267586,-2237.11,0.00032876,14]
[332690453,1721452267599,-500.0,0.00032876,14]
[332690454,1721452267609,-500.0,0.00032876,14]
[332690455,1721452267619,-868.02,0.00032876,14]
[332690456,1721452267628,-500.0,0.00032876,14]
[332690457,1721452267639,-500.0,0.00032876,14]
[332690458,1721452267648,-500.0,0.00032876,14]
[332690459,1721452267658,-500.0,0.00032876,14]
[332690460,1721452267667,-4350.27,0.00032876,14]
[332690461,1721452267679,-4021.1,0.00032876,14]
[332690462,1721452267688,-500.0,0.00032876,14]
[332690463,1721452267698,-500.0,0.00032876,14]
[332690464,1721452267707,-2322.17,0.00032876,14]
[332690465,1721452267716,-500.0,0.00032876,14]
[332690466,1721452267726,-500.0,0.00032876,14]
[332690467,1721452267736,-2299.12,0.00032876,14]
[332690468,1721452267746,-500.0,0.00032876,14]
[332690469,1721452267755,-4549.79,0.00032876,14]
[332690470,1721452267765,-508.7145582,0.00032876,14]
[332690471,1721452267774,-500.0,0.00032876,14]
[332690472,1721452267784,-500.0,0.00032876,14]
[332690473,1721452267793,-202.77057559,0.00032876,14]
[332690474,1721452267803,-500.0,0.00032876,14]
[332690475,1721452267812,-727.88,0.00032876,14]
[332690476,1721452267822,-690.39,0.00032876,14]
[332690477,1721452267831,-500.0,0.00032876,14]
[332690478,1721452267841,-696.27,0.00032876,14]
[332690479,1721452267850,-2308.61,0.00032876,14]
[332690480,1721452267860,-696.27,0.00032876,14]
[332690481,1721452267869,-696.27,0.00032876,14]
[332690482,1721452267879,-500.0,0.00032876,14]
[332690483,1721452267888,-696.27,0.00032876,14]
[332690484,1721452267898,-696.27,0.00032876,14]
[332690485,1721452267907,-500.0,0.00032876,14]
[332690486,1721452267917,-696.27,0.00032876,14]
[332690487,1721452267927,-500.0,0.00032876,14]
[332690488,1721452267937,-696.27,0.00032876,14]
[332690489,1721452267946,-500.0,0.00032876,14]
[332690490,1721452267956,-696.27,0.00032876,14]
[332690491,1721452267966,-696.27,0.00032876,14]
[332690492,1721452267976,-696.27,0.00032876,14]
[332690493,1721452267986,-696.27,0.00032876,14]
[332690494,1721452267995,-500.0,0.00032876,14]
[332690495,1721452268004,-2345.67,0.00032876,14]
[332690496,1721452268013,-696.27,0.00032876,14]
[332690497,1721452268023,-897.7,0.00032876,14]
[332690498,1721452268033,-696.27,0.00032876,14]
[332690499,1721452268042,-2219.37,0.00032876,14]
[332690500,1721452268052,-696.27,0.00032876,14]
[332690501,1721452268061,-696.27,0.00032876,14]
[332690502,1721452268071,-696.27,0.00032876,14]
[332690503,1721452268081,-500.0,0.00032876,14]
[332690504,1721452268094,-696.27,0.00032876,14]
[332690505,1721452268103,-714.91,0.00032876,14]
[332690506,1721452268112,-696.27,0.00032876,14]
[332690507,1721452268122,-1447.59,0.00032876,14]
[332690508,1721452268132,-696.27,0.00032876,14]
[332690509,1721452268141,-504.4594133,0.00032876,14]
[332690510,1721452268151,-696.27,0.00032876,14]
[332690511,1721452268160,-696.27,0.00032876,14]
[332690512,1721452268170,-696.27,0.00032876,14]
[332690513,1721452268179,-696.27,0.00032876,14]
[332690514,1721452268189,-696.40429926,0.00032876,14]
[332690515,1721452268198,-3887.56,0.00032876,14]
[332690516,1721452268207,-500.0,0.00032876,14]
[332690517,1721452268217,-500.0,0.00032876,14]
[332690518,1721452268226,-500.0,0.00032876,14]
[332690519,1721452268235,-1829.99,0.00032876,14]
[332690520,1721452268245,-513.00697678,0.00032876,14]
[332690521,1721452268255,-294.19572801,0.00032876,14]
[332690522,1721452268264,-500.0,0.00032876,14]
[332690523,1721452268273,-200.33999882,0.00032876,14]
[332690524,1721452268283,-500.0,0.00032876,14]
[332690525,1721452268294,-500.0,0.00032876,14]
[332690526,1721452268303,-500.0,0.00032876,14]
[332690527,1721452268312,-500.0,0.00032876,14]
[332690528,1721452268321,-500.0,0.00032876,14]
[332690529,1721452268333,-500.0,0.00032876,14]
[332690530,1721452268342,-3908.15,0.00032876,14]
[332690531,1721452268352,-500.0,0.00032876,14]
[332690532,1721452268364,-2286.14,0.00032876,14]
[332690533,1721452268373,-2250.72,0.00032876,14]
[332690534,1721452268385,-500.0,0.00032876,14]
[332690535,1721452268394,-630.28,0.00032876,14]
[332690536,1721452268403,-500.0,0.00032876,14]
[332690537,1721452268413,-1101.72,0.00032876,14]
[332690538,1721452268422,-3419.99,0.00032876,14]
[332690539,1721452268433,-1956.67,0.00032876,14]
[332690540,1721452268445,-500.0,0.00032876,14]
[332690541,1721452268454,-500.0,0.00032876,14]
[332690542,1721452268463,-501.53661158,0.00032876,14]
[332690543,1721452268473,-2493.86,0.00032876,14]
[332690544,1721452268482,-500.0,0.00032876,14]
[332690545,1721452268492,-3643.83,0.00032876,14]
[332690546,1721452268501,-500.0,0.00032876,14]
[332690547,1721452268511,-500.0,0.00032876,14]
[332690548,1721452268522,-500.0,0.00032876,14]
[332690549,1721452268532,-500.0,0.00032876,14]
[332690550,1721452268541,-2478.72,0.00032876,14]
[332690551,1721452268551,-1806.09,0.00032876,14]
[332690552,1721452268561,-500.0,0.00032876,14]
[332690553,1721452268570,-500.0,0.00032876,14]
[332690554,1721452268579,-522.24,0.00032876,14]
[332690555,1721452268589,-500.0,0.00032876,14]
[332690556,1721452268600,-1611.07,0.00032876,14]
[332690557,1721452268609,-500.0,0.00032876,14]
[332690558,1721452268619,-4399.51,0.00032876,14]
[332690559,1721452268628,-500.0,0.00032876,14]
[332690560,1721452268638,-500.0,0.00032876,14]
[332690561,1721452268647,-500.0,0.00032876,14]
[332690562,1721452268657,-500.0,0.00032876,14]
[332690563,1721452268669,-500.0,0.00032876,14]
[332690564,1721452268679,-500.0,0.00032876,14]
[332690565,1721452268688,-500.0,0.00032876,14]
[332690566,1721452268697,-500.0,0.00032876,14]
[332690567,1721452268706,-500.0,0.00032876,14]
[332690568,1721452268715,-512.79103631,0.00032876,14]
[332690569,1721452268724,-500.0,0.00032876,14]
[332690570,1721452268733,-500.0,0.00032876,14]
[332690571,1721452268743,-2764.89,0.00032876,14]
[332690572,1721452268752,-500.0,0.00032876,14]
[332690573,1721452268762,-500.0,0.00032876,14]
[332690574,1721452268772,-500.0,0.00032876,14]
[332690575,1721452268783,-421.78376107,0.00032876,14]
[332690576,1721452268793,-758.97,0.00032876,14]
[332690577,1721452268802,-500.0,0.00032876,14]